Cogmind - Beta 14 --- EXPLORER MODE // 2024.10.11 @ 11:02:41 Player: taylor Result: Self-destructed Performance ------------- Evolutions (2) 1000 Regions Visited (6) 1200 Robots Destroyed (17) 85 Value Destroyed (447) 447 Prototype IDs (2) 40 Alien Tech Used (0) 0 Bonus (556) 556 TOTAL SCORE: 3328 Bonus ------- Follower Combat Kills 56 Entered Garrisons 200 Aligned with FarCom 300 Cogmind --------- Core Integrity 494/550 Matter 297/300 Energy 243/250 System Corruption 0% Temperature Cool (54) Movement Treading (160) Location -8/Garrison Parts ------- > --- POWER (1) -------- Ion Engine > --- PROPULSION (3) --- Light Treads Light Treads > --- UTILITY (5) ------ Small Storage Unit Modified TNC Particle Charger > --- WEAPON (3) ------- Heavy EM Pulse Gun Heavy Battle Rifle Katana > --- INVENTORY (8) ---- Light Nuclear Core Small Storage Unit High-capacity Battery (250) Compact Matter Pod (150) Experimental Sensor Array Hacking Suite Field Laser Mining Laser Peak State ------------ > --- POWER ------------ Ion Engine > --- PROPULSION ------- Light Treads Light Treads > --- UTILITY ---------- Small Storage Unit Modified TNC Particle Charger Light Armor Plating > --- WEAPON ----------- Heavy EM Pulse Gun Heavy Battle Rifle Improved Datajack > --- INVENTORY -------- Light Nuclear Core Small Storage Unit High-capacity Battery Compact Matter Pod Experimental Sensor Array Assault Rifle Rocket Launcher Mining Laser [Rating: 25] Favorites ----------- Power Ion Engine Engine Ion Engine Propulsion Light Treads Treads Light Treads Leg Aluminum Leg Utility Small Storage Unit Device Particle Charger Storage Small Storage Unit Processor Modified TNC Protection Light Armor Plating Weapon Assault Rifle Energy Gun Heavy EM Pulse Gun Ballistic Gun Assault Rifle Slashing Weapon Katana Special Melee Weapon Improved Datajack Build | -11 -10 -10 -10 -9 -8 -8 ------- Run | Yrd Mat Min Exi Min Mat Gar Slots Evolved 5 | . 1 . . . 4 . Power . | . . . . . . . Propulsion 1 | . . . . . 1 . Utility 3 | . 1 . . . 2 . Weapon 1 | . . . . . 1 . Parts Attached 23 | 9 2 . 1 4 7 . Power 1 | 1 . . . . . . Engine 1 | 1 . . . . . . Core . | . . . . . . . Reactor . | . . . . . . . Propulsion 4 | 4 . . . . . . Treads 2 | 2 . . . . . . Leg 2 | 2 . . . . . . Wheel . | . . . . . . . Hover . | . . . . . . . Flight . | . . . . . . . Utility 8 | 2 2 . 1 2 1 . Device 2 | . . . . 1 1 . Storage 2 | 1 1 . . . . . Processor 2 | . 1 . 1 . . . Hackware . | . . . . . . . Protection 2 | 1 . . . 1 . . Artifact . | . . . . . . . Weapon 10 | 2 . . . 2 6 . Energy Gun 1 | . . . . 1 . . Energy Cannon . | . . . . . . . Ballistic Gun 7 | 2 . . . 1 4 . Ballistic Cannon . | . . . . . . . Launcher . | . . . . . . . Special Weapon . | . . . . . . . Impact Weapon . | . . . . . . . Slashing Weapon 1 | . . . . . 1 . Piercing Weapon . | . . . . . . . Special Melee Weapon 1 | . . . . . 1 . Unidentified Prototypes 2 | . . . 1 1 . . Parts Lost 1 | . . . . . . 1 Power . | . . . . . . . Propulsion . | . . . . . . . Utility 1 | . . . . . . 1 Weapon . | . . . . . . . Highest Loss Streak 1 | . . . . . . 1 To Critical Strikes . | . . . . . . . Average Slot Usage (%) 93 | . 94 100 100 99 80 83 Engine 10 | . 12 12 12 12 8 8 Treads 22 | . 25 25 25 25 16 16 Device 2 | . . . . 2 7 8 Storage 10 | . 12 12 12 12 8 8 Processor 9 | . 6 12 12 12 8 8 Protection 9 | . 12 12 12 8 8 8 Energy Gun 5 | . . . . 9 8 8 Ballistic Gun 17 | . 25 25 25 14 8 8 Slashing Weapon 1 | . . . . . 3 8 Peak Build Rating 25 | 7 9 10 14 23 25 25 Average Rating 16 | 5 8 9 11 18 23 24 On Entrance 12 | . 7 9 10 14 19 25 Naked Turns . | . . . . . . . Heaviest Build 25 | 22 22 17 17 20 25 25 Greatest Support 40 | 40 40 40 40 40 40 40 Greatest Overweight (x) 1 | 1 . . . . . . Average Overweight (x) . | . . . . . . . Largest Inventory Capacity 10 | 10 10 8 8 8 8 8 Average Capacity 8 | 7 8 8 8 8 8 8 Most Carried 8 | 5 5 8 8 8 8 8 Average Carried 6 | 1 4 5 6 6 7 8 Final Capacity 10 | 10 8 8 8 8 8 8 Final Carried 8 | 2 5 8 5 8 8 8 Class Distribution -------------------- 94% | Hacker-Mutant 5% | Hacker-Skirmisher Dominant Class ---------------- Hacker-Mutant | -10/Materials Hacker-Mutant | -10/Mines Hacker-Mutant | -10/Exiles Hacker-Mutant | -9/Mines Hacker-Mutant | -8/Materials Hacker-Mutant | -8/Garrison Resources | -11 -10 -10 -10 -9 -8 -8 ----------- Run | Yrd Mat Min Exi Min Mat Gar Matter Collected 583 | 229 164 7 . 56 97 30 Remotely . | . . . . . . . Salvage Created 494 | . 122 . . 35 182 155 Parts 39 | . 14 . . 6 14 5 Haulers Intercepted . | . . . . . . . Recyclers Shooed 1 | . . . . . 1 . Parts Field Recycled . | . . . . . . . Retrieved Matter . | . . . . . . . Parts Self-Destructed . | . . . . . . . Prevented . | . . . . . . . Kills | -11 -10 -10 -10 -9 -8 -8 ------- Run | Yrd Mat Min Exi Min Mat Gar Combat Hostiles Destroyed 14 | . 5 . . 2 4 3 Guns 14 | . 5 . . 2 4 3 Classes Destroyed 4 | . 3 . . . 1 . Watcher 3 | . 1 . . . 2 . Swarmer 8 | . 4 . . 2 2 . Grunt 5 | . 1 . . . 1 3 Brawler 1 | . . . . . 1 . Best Kill Streak 3 | . 3 . . 2 2 3 Combat Bots Only 3 | . 2 . . 2 2 3 Max Kills in Single Turn 1 | . 1 . . 1 1 1 Gunslinging . | . . . . . . . Exploded . | . . . . . . . Melee . | . . . . . . . Uniques/NPCs Destroyed . | . . . . . . . Combat | -11 -10 -10 -10 -9 -8 -8 -------- Run | Yrd Mat Min Exi Min Mat Gar Hostile Shots Fired 84 | . 29 1 . 7 10 37 Missed 21 | . 4 1 . 3 2 11 Damage Taken 521 | . 158 . . 16 95 252 Core 78 | . 18 . . 4 5 51 Absorbed by Shields . | . . . . . . . Ignored by Resistances 323 | . 106 . . 12 55 150 Core Remaining (%) 95 | 100 . . . 91 . . Volleys Fired 37 | . 15 . . 2 10 10 Largest 2 | . 2 . . 2 2 2 Hottest 78 | . 40 . . 78 78 78 Shots Fired 74 | . 30 . . 4 20 20 Gun 74 | . 30 . . 4 20 20 Cannon . | . . . . . . . Launcher . | . . . . . . . Special . | . . . . . . . Kinetic 52 | . 30 . . 2 10 10 Thermal . | . . . . . . . Explosive . | . . . . . . . Electromagnetic 22 | . . . . 2 10 10 Robot Hit Streak 29 | . 16 . . 2 9 29 Robot Miss Streak 1 | . 1 . . 1 1 . Penetration Max . | . . . . . . . Secondary Targets . | . . . . . . . Shots Hit Robots 64 | . 24 . . 2 18 20 Core Hits 28 | . 9 . . 2 10 7 Critical Kills 1 | . . . . . 1 . Critical Parts Destroyed . | . . . . . . . Critical Strikes 2 | . . . . . 2 . Destroy 1 | . . . . . 1 . Sever 1 | . . . . . 1 . Melee Attacks 2 | . . . . . 2 . Impact . | . . . . . . . Slashing 1 | . . . . . 1 . Piercing . | . . . . . . . Sneak Attacks 1 | . . . . . 1 . Combat Hostiles . | . . . . . . . Follow-up Attacks . | . . . . . . . Damage Inflicted 1352 | . 300 . . 31 552 469 Guns 1027 | . 300 . . 31 324 372 Cannons . | . . . . . . . Explosions 291 | . . . . . 194 97 Melee 34 | . . . . . 34 . Ramming . | . . . . . . . Kinetic 692 | . 300 . . 19 174 199 Thermal 291 | . . . . . 194 97 Explosive . | . . . . . . . Electromagnetic 335 | . . . . 12 150 173 Impact . | . . . . . . . Slashing 34 | . . . . . 34 . Piercing . | . . . . . . . Highest Corruption . | . . . . . . . Average Corruption . | . . . . . . . Corruption Purged . | . . . . . . . Corruption Blocked . | . . . . . . . Overload Shots . | . . . . . . . Overflow Damage . | . . . . . . . Projectiles . | . . . . . . . Explosions . | . . . . . . . Melee . | . . . . . . . Knockbacks . | . . . . . . . Impact . | . . . . . . . Kinetic . | . . . . . . . Secondary . | . . . . . . . Self-Inflicted Damage 33 | . . . . . 33 . Shots 1 | . . . . . 1 . Rammed . | . . . . . . . Targets Rammed . | . . . . . . . Kicked . | . . . . . . . Crushed . | . . . . . . . Highest Temperature 297 | . 9 . . 54 48 297 Average Temperature 74 | . 4 . . 28 19 145 Received Heat Transfer 384 | . 78 . . . 36 270 Effects 1 | . . . . . . 1 Energy Bleed 1 | . . . . . . 1 Siege Activations . | . . . . . . . Robots Corrupted . | . . . . . . . Combat Hostiles . | . . . . . . . Parts Fried 1 | . . . . . . 1 Impact Corruptions . | . . . . . . . Robots Melted . | . . . . . . . Combat Hostiles . | . . . . . . . Parts Melted 1 | . . . . . 1 . Heat Transferred 350 | . . . . . 250 100 Parts Sabotaged . | . . . . . . . Parts Stolen . | . . . . . . . Parts Stripped . | . . . . . . . Power Chain Reactions 4 | . . . . . 3 1 Alert | -11 -10 -10 -10 -9 -8 -8 ------- Run | Yrd Mat Min Exi Min Mat Gar Peak Influence 179 | . 132 98 . 54 179 105 Initial 37 | . . 16 . . 14 37 Average 37 | . 27 23 . 13 76 79 Maximum Alert Level . | . . . . . . . Low Security (%) 100 | 100 100 100 . 100 100 100 Level 1 . | . . . . . . . Level 2 . | . . . . . . . Level 3 . | . . . . . . . Level 4 . | . . . . . . . Level 5 . | . . . . . . . High Security . | . . . . . . . Max Security . | . . . . . . . Squads Dispatched . | . . . . . . . Investigation . | . . . . . . . Extermination . | . . . . . . . Reinforcement . | . . . . . . . Assault . | . . . . . . . Garrison . | . . . . . . . Intercept . | . . . . . . . Searches Triggered . | . . . . . . . Construction Impeded . | . . . . . . . Haulers Reinforced . | . . . . . . . Active Scanning Responses . | . . . . . . . Cargo Convoy Interrupts . | . . . . . . . Stealth | -11 -10 -10 -10 -9 -8 -8 --------- Run | Yrd Mat Min Exi Min Mat Gar Distress Signals 4 | . . . . . 4 . Communications Jammed . | . . . . . . . Distress Signals . | . . . . . . . Times Spotted 32 | . 8 3 . 4 11 6 Peak Tracking Total 4 | . 2 2 . 2 4 3 Tactical Retreats 2 | . 1 . . . 1 . Traps | -11 -10 -10 -10 -9 -8 -8 ------- Run | Yrd Mat Min Exi Min Mat Gar Traps Triggered . | . . . . . . . Indirectly . | . . . . . . . Trap Hack Attempts . | . . . . . . . Triggered . | . . . . . . . Disarmed . | . . . . . . . Reprogrammed . | . . . . . . . Reused . | . . . . . . . Traps Extracted . | . . . . . . . Installed . | . . . . . . . Triggered . | . . . . . . . Machines | -11 -10 -10 -10 -9 -8 -8 ---------- Run | Yrd Mat Min Exi Min Mat Gar Machines Disabled 3 | . . . . 1 1 1 Max in Single Turn 1 | . . . . 1 1 1 Machines Repaired . | . . . . . . . Machines Dismantled . | . . . . . . . Machines Sabotaged . | . . . . . . . Overloaded Fab Kills . | . . . . . . . Hacking | -11 -10 -10 -10 -9 -8 -8 --------- Run | Yrd Mat Min Exi Min Mat Gar Machines Accessed 9 | . 5 . 1 . 2 1 Terminals 7 | . 5 . . . 1 1 Fabricators . | . . . . . . . Repair Stations . | . . . . . . . Recycling Units . | . . . . . . . Scanalyzers . | . . . . . . . Garrison Access 1 | . . . . . 1 . Total Hacks 25 | . 16 . 4 . 4 1 Successful 17 | . 10 . 4 . 3 . Failed 8 | . 6 . . . 1 1 Catastrophic . | . . . . . . . Database Lockouts . | . . . . . . . Manual 11 | . 7 . 1 . 2 1 Terminals 19 | . 16 . . . 2 1 Fabricators . | . . . . . . . Repair Stations . | . . . . . . . Recycling Units . | . . . . . . . Scanalyzers . | . . . . . . . Garrison Access 2 | . . . . . 2 . Terminal Hacks 13 | . 7 . 4 . 2 . Record 7 | . 3 . 4 . . . Level Access Points 1 | . 1 . . . . . Branch Access Points 1 | . 1 . . . . . Garrison Index 1 | . . . . . 1 . Locate Traps 1 | . 1 . . . . . Hauler Manifests 1 | . 1 . . . . . Zone Layout 1 | . . . . . 1 . Fabricator Hacks . | . . . . . . . Repair Station Hacks . | . . . . . . . Recycling Unit Hacks . | . . . . . . . Scanalyzer . | . . . . . . . Garrison Access Hacks 1 | . . . . . 1 . Unlock Access 1 | . . . . . 1 . Unauthorized Hacks 3 | . 3 . . . . . Terminals 3 | . 3 . . . . . Botnet 3 | . 3 . . . . . Fabricators . | . . . . . . . Repair Stations . | . . . . . . . Recycling Units . | . . . . . . . Scanalyzers . | . . . . . . . Garrison Access . | . . . . . . . Data Cores Recovered . | . . . . . . . Used . | . . . . . . . Hacking Detections 6 | . 4 . . . 1 1 Full Trace Events 2 | . 2 . . . . . Feedback Events . | . . . . . . . Feedback Blocked . | . . . . . . . Robot Schematics Acquired . | . . . . . . . Robots Built . | . . . . . . . Authchips . | . . . . . . . Time . | . . . . . . . Total Robot Build Rating . | . . . . . . . Part Schematics Acquired . | . . . . . . . Parts Built . | . . . . . . . Authchips . | . . . . . . . Time . | . . . . . . . Total Part Build Rating . | . . . . . . . Parts Repaired . | . . . . . . . Time . | . . . . . . . Parts Recycled . | . . . . . . . Recycled Matter . | . . . . . . . Retrieved Matter . | . . . . . . . Retrieved Components . | . . . . . . . Parts Scanalyzed . | . . . . . . . Part Schematics Acquired . | . . . . . . . Parts Damaged . | . . . . . . . Bothacking | -11 -10 -10 -10 -9 -8 -8 ------------ Run | Yrd Mat Min Exi Min Mat Gar Used RIF Installer . | . . . . . . . Robots Hacked 1 | . . . . . 1 . Non-combat 1 | . . . . . 1 . Combat . | . . . . . . . Robot Hacks Applied 1 | . . . . . 1 . no_distress 1 | . . . . . 1 . Relay Couplers Released . | . . . . . . . Fabnet Peak Effective % . | . . . . . . . Robots Rewired . | . . . . . . . Allies Hacked . | . . . . . . . Hacks Repelled . | . . . . . . . Allies | -11 -10 -10 -10 -9 -8 -8 -------- Run | Yrd Mat Min Exi Min Mat Gar Total Allies 4 | . . 3 . 1 . . Largest Group 3 | . . 3 2 3 . . Highest-Rated Group 63 | . . 40 32 63 . . Highest-Rated Ally 31 | . . 16 16 31 . . Total Orders . | . . . . . . . Ally Attacks 30 | . . 15 . 15 . . Total Damage 312 | . . 161 . 151 . . Kills 5 | . . 4 . 1 . . Allies Corrupted . | . . . . . . . Allies Melted . | . . . . . . . Intel | -11 -10 -10 -10 -9 -8 -8 ------- Run | Yrd Mat Min Exi Min Mat Gar Robot Analysis Total . | . . . . . . . Derelict Logs Recovered 2 | . . . . 2 . . Drone Launches . | . . . . . . . Drone Recoveries . | . . . . . . . Exploration | -11 -10 -10 -10 -9 -8 -8 ------------- Run | Yrd Mat Min Exi Min Mat Gar Turns Passed 4094 | 72 781 461 467 1164 693 456 Spaces Moved 2060 | 46 410 257 288 641 202 216 Core 16 | 16 . . . . . . Treads 2033 | 19 410 257 288 641 202 216 Legs 11 | 11 . . . . . . Wheels . | . . . . . . . Hover . | . . . . . . . Flight . | . . . . . . . Fastest Speed 50 | 50 160 160 160 160 160 160 Average Speed 159 | 116 160 160 160 160 160 160 Slowest Speed 240 | 240 160 160 160 160 160 160 Overloaded Moves . | . . . . . . . Propulsion Burnouts . | . . . . . . . Robots Hopped . | . . . . . . . Cave-ins Triggered . | . . . . . . . Exploration Rate (%) 47 | 4 59 63 66 82 23 34 Regions Visited 6 Branch Regions 3 Pre-discovered Areas 1 | . . . . 1 . . Known Exits Taken 6 | 1 1 1 1 1 1 . Unknown Exits Taken . | . . . . . . . Scrap Searched 3 | . . 1 . 2 . . Spaces Dug . | . . . . . . . Terrain Destroyed 14 | . . . . . 10 4 Melee . | . . . . . . . Projectile . | . . . . . . . AOE 14 | . . . . . 10 4 Terrain Rammed . | . . . . . . . Walls Destroyed . | . . . . . . . Machines Disabled . | . . . . . . . Actions | -11 -10 -10 -10 -9 -8 -8 --------- Run | Yrd Mat Min Exi Min Mat Gar Total 2802 | 63 505 307 296 777 548 306 Wait 644 | . 73 48 1 121 321 80 Move 2055 | 45 409 256 287 640 202 216 Hop . | . . . . . . . Pick Up 27 | 9 5 3 1 6 3 . Fast Attach 2 | . . . . . 2 . Attach 13 | 7 1 . 1 3 1 . Detach 1 | . . . . 1 . . Swap 8 | 2 1 . . 1 4 . Drop 11 | . 1 . 4 3 3 . Fire 37 | . 15 . . 2 10 10 Melee 2 | . . . . . 2 . Ram . | . . . . . . . Kick . | . . . . . . . Crush . | . . . . . . . Escape Stasis . | . . . . . . . Rewire 2 | . . . 2 . . . Trap . | . . . . . . . Miscellaneous . | . . . . . . . Route ------- -11/Scrapyard -10/Materials (discovered 4 exits: *Mat x3 / *Min) -10/Mines (discovered 2 exits: *Mat / *Exi) -10/Exiles (discovered 2 exits: *Min x2) -9/Mines -8/Materials -8/Garrison (discovered 1 exit: *Mat) History --------- Turn | Location | Event 13 | -11/Scrapyard | Identified exit to Materials 13 | -11/Scrapyard | Discovered exit to Materials (range 14) 73 | -11/Scrapyard | Entered Materials 73 | -10/Materials | Evolved 1 slot: Utility x1 235 | -10/Materials | Identified exit to Materials 302 | -10/Materials | Build established: Hacker-Mutant 572 | -10/Materials | Identified exit to Mines 854 | -10/Materials | Entered Mines 885 | -10/Mines | Assisted by bots powering up and referring to "LRC-V3" 1065 | -10/Mines | A weapon hastily lodged in a ceiling crevice suddenly fell to the ground 1162 | -10/Mines | Discovered exit to Materials (range 10) 1296 | -10/Mines | Deemed a non-threat by the Exiles lab entrance 1298 | -10/Mines | Identified exit to Exiles 1298 | -10/Mines | Discovered exit to Exiles (range 5) 1315 | -10/Mines | Entered Exiles 1315 | -10/Exiles | Accompanied by 2 allies 1339 | -10/Exiles | Identified exit to Mines 1339 | -10/Exiles | Discovered exit to Mines (range 17) 1384 | -10/Exiles | Met 8R-AWN 1423 | -10/Exiles | Met EX-HEX 1521 | -10/Exiles | Met EX-BIN 1549 | -10/Exiles | Aligned with FarCom system 1551 | -10/Exiles | Given EX-Vault access code 1588 | -10/Exiles | Opened EX-Vault 1605 | -10/Exiles | Found Prototype Processor 1607 | -10/Exiles | Identified Modified TNC 1641 | -10/Exiles | Warned to stay clear of 0b10 Research branches 1683 | -10/Exiles | Met EX-DEC 1758 | -10/Exiles | Discovered exit to Mines (range 15) 1782 | -10/Exiles | Left Exiles lab with Modified TNC 1782 | -10/Exiles | Entered Mines 1782 | -9/Mines | Accompanied by 2 allies 2051 | -9/Mines | Learned location of Zion (-6) 2065 | -9/Mines | Found a damaged Exp. Sensor Array with a note attached 2068 | -9/Mines | Found Prototype Device 2070 | -9/Mines | Identified Exp. Sensor Array 2102 | -9/Mines | Received a Mining Laser from a helpful Derelict 2369 | -9/Mines | Received a Rocket Launcher from a helpful Derelict 2936 | -9/Mines | Identified exit to Materials 2936 | -9/Mines | Discovered exit to Materials (range 7) 2946 | -9/Mines | Entered Materials 2946 | -8/Materials | Evolved 4 slots: Propulsion x1, Utility x2, Weapon x1 3639 | -8/Materials | Identified exit to Garrison 3639 | -8/Materials | Entered Garrison 3783 | -8/Garrison | Triggered checkpoint 3961 | -8/Garrison | Identified exit to Materials 3961 | -8/Garrison | Discovered exit to Materials (range 11) 4091 | -8/Garrison | Triggered checkpoint 4095 | -8/Garrison | Self-destructed Last Messages --------------- 03639_ Receiving FarCom transmissions... 03780_ Connecting with Garrison Terminal... 03783_ Beams of light sweep through the air. An alarm sounds. 03797_ G-47 Trooper destroyed. 03805_ Critical hit (Burn: +37). 03812_ Chain reaction triggered in Lgt. Nuclear Core. 03812_ Garrison Terminal disabled. 03812_ Imp. Heat Sink fried. 03812_ G-47 Trooper destroyed. 03825_ Overheating: Energy bleed (-31). 03834_ Acquired 12 matter. 03836_ Acquired 18 matter. 03961_ EXIT=FOUND: MATERIALS 04091_ Beams of light sweep through the air. An alarm sounds. 04091_ Lgt. Armor Plating destroyed. 04091_ Critical hit (Burn: +37). 04095_ G-47 Trooper IFF system glitched. Map ----- +----------------------------------------------------+ | ?????? #????????????????????????????????????????? | | ###### #????????????????????????????????????????? | | #????????????????????????????????????????? | | #????????????????????????????????????????? | | #????????????????????????????????????????? | | ##### #????????????????????????????????????????? | | ????# #????????????????????????????????????????? | | ????# #????????????????????????????????????????? | | ????# #????????????????????????????????????????? | | ????# #????????????????????????????????????????? | | ????# #????????????????????????????????????????? | | ????# #????????????????????????????????????????? | | ????# #????????????????????????????????????????? | | ????# #????????????????????????????????????????? | | ????# #????????????????????????????????????????? | | ????# #????????????????????????????????????????? | | ????# #????????????????????????????????????????? | | ????# #????????????????????????????????????????? | | ????# #????????????????????????????????????????? | | ????# #????????????????????????????????????????? | | ????# #???????????#####????????????????????????? | | ????# #????######?# gg????????????????????????? | | ????# ######;;# ### g ######??????????????????? | | ????# ########???????????? | | ????# ^ =!% #????????? | | ????# ^ * =[ @ #????????? | | ????##########;;% ## ## ####???????????????? | | ?????????????### ## ## #??????????????????? | | ?????????????# ^ "??????????????????? | | ?????????????# ^ "g?????????????????? | | ?????????????# "g?????????????????? | | ?????????????# ^ "g?????????????????? | | ?????????????### ## ## #??????????????????? | | ???????????????# ## ## ##?????????????????? | | ???????????????# ????????????????? | | ???????????????# ???????????????? | | ???????????????# ??????????????? | | ???????????????# ##""""##########??????????????? | | ???????????????# #???C?????????????????????????? | | ???????????????# #?????????????????????????????? | | ???????????????# #?????????????????????????????? | | ???????????????# #?????????????????????????????? | | ???????????????# #?????????????????????????????? | | ???????????????# #?????????????????????????????? | | ################ #?????????????????????????????? | | ^^ #?????????????????????????????? | | ^ #?????????????????????????????? | | ^ #?????????????????????????????? | | ####################?????????????????????????????? | | ?????????????????????????????????????????????????? | +----------------------------------------------------+ Best States ------------- Heat Dissipation 31 Energy Generation 10 Energy Capacity 250 Matter Stores 300 Matter Capacity 300 Sight Range 18 Robot Scan Range 20 Terrain Scan Density 10 Armor Coverage 150 Resistance: KI 35 Resistance: TH 35 Resistance: EX 35 Resistance: EM 35 Resistance: I 35 Resistance: S 35 Resistance: P 35 Evasion (%) 50 Recoil Reduction 2 Particle Charging 15 Offensive Hacking 20 Item Schematics ----------------- None Robot Schematics ------------------ None Fabricated ------------ Nothing Alien Tech Used ----------------- None Achievements -------------- None Challenges ------------ None Game ------ Seed ElectronBehemothSubcomponent Manual? 0 Play Time 00:53:09 Cumulative 45.8 hours Start 2024.10.11 @ 09:46:38 End 2024.10.11 @ 11:02:41 Sessions 3 Manual Loads 0 Difficulty Explorer Special Mode None Game No. 62 Rogue 21 Adventurer 0 Explorer 41 Win Type - Total 0 Types 0/0/0/0/0/0/0/0/0 Lore% 16 Gallery% 32 Achievement% 38 Wizard Run 0 Options --------- Layout 1 ASCII 0 Keyboard 0 Movement Mouse Keybinds 0 Fullscreen 1 Font 24/Smallcaps Map View 50x35 Zoom Use 0% Tactical HUD 1 Map Filters NONE Filters NONE Steam 1 RUN: 46aec145-e71f-4f05-a97d-453aa69afb1f